{"text_format":"3","workbook":"xlsx","n_sheets":1,"sheets":["ESF"],"not_rendered":{"defined_names":2},"read":"whole","date_system":"1900"}

{"sheet":"ESF","index":0,"n_rows":51,"n_cols":6,"rows_kept":51,"merged":[[0,0,0,5]]}
["INSTITUTO MUNICIPAL DE PLANEACIÓN DE IRAPUATO, GTO.\nEstado de Situación Financiera\nAl 31 de Diciembre de 2025\n(Cifras en Pesos)"]
["Concepto",2025,2024,"Concepto",2025,2024]
["ACTIVO",null,null,"PASIVO"]
["Activo Circulante",null,null,"Pasivo Circulante"]
["Efectivo y Equivalentes",{"v":10023904.89,"d":"10,023,905"},{"v":8480863.8,"d":"8,480,864"},"Cuentas por Pagar a Corto Plazo",{"v":1794028.95,"d":"1,794,029"},{"v":790763.27,"d":"790,763"}]
["Derechos a Recibir Efectivo o Equivalentes",{"v":45058.52,"d":"45,059"},{"v":44508.52,"d":"44,509"},"Documentos por Pagar a Corto Plazo",0,0]
["Derechos a Recibir Bienes o Servicios",{"v":198534,"d":"198,534"},0,"Porción a Corto Plazo de la Deuda Pública a Largo Plazo",0,0]
["Inventarios",0,0,"Títulos y Valores a Corto Plazo",0,0]
["Almacenes",0,0,"Pasivos Diferidos a Corto Plazo",0,0]
["Estimación por Pérdida o Deterioro de Activos Circulantes",0,0,"Fondos y Bienes de Terceros en Garantía y/o Administración a Corto Plazo",0,0]
["Otros Activos Circulantes",0,0,"Provisiones a Corto Plazo",0,0]
[{"$nulls":3},"Otros Pasivos a Corto Plazo",0,0]
["Total de Activos Circulantes",{"$f":"SUM(B5:B11)","v":{"v":10267497.41,"d":"10,267,497"}},{"$f":"SUM(C5:C11)","v":{"v":8525372.32,"d":"8,525,372"}}]
[{"$nulls":3},"Total de Pasivos Circulantes",{"$f":"SUM(E5:E12)","v":{"v":1794028.95,"d":"1,794,029"}},{"$f":"SUM(F5:F12)","v":{"v":790763.27,"d":"790,763"}}]
["Activo No Circulante"]
["Inversiones Financieras a Largo Plazo",0,0,"Pasivo No Circulante"]
["Derechos a Recibir Efectivo o Equivalentes a Largo Plazo",0,0,"Cuentas por Pagar a Largo Plazo",0,{"v":3429029.83,"d":"3,429,030"}]
["Bienes Inmuebles, Infraestructura y Construcciones en Proceso",0,0,"Documentos por Pagar a Largo Plazo",0,0]
["Bienes Muebles",{"v":9520308.47,"d":"9,520,308"},{"v":8647957.73,"d":"8,647,958"},"Deuda Pública a Largo Plazo",0,0]
["Activos Intangibles",{"v":1841057.06,"d":"1,841,057"},{"v":1804563.05,"d":"1,804,563"},"Pasivos Diferidos a Largo Plazo",0,0]
["Depreciación, Deterioro y Amortización Acumulada de Bienes",{"v":-6712284.82,"d":"-6,712,285"},{"v":-5267408.67,"d":"-5,267,409"},"Fondos y Bienes de Terceros en Garantía y/o Administración a Largo Plazo",0,0]
["Activos Diferidos",0,0,"Provisiones a Largo Plazo",0,0]
["Estimación por Pérdida o Deterioro de Activos no Circulantes",0,0]
["Otros Activos no Circulantes",0,0,"Total de Pasivos No Circulantes",{"$f":"SUM(E17:E22)","v":0},{"$f":"SUM(F17:F22)","v":{"v":3429029.83,"d":"3,429,030"}}]
[]
["Total de Activos No Circulantes",{"$f":"SUM(B16:B24)","v":{"v":4649080.710000001,"d":"4,649,081"}},{"$f":"SUM(C16:C24)","v":{"v":5185112.110000001,"d":"5,185,112"}},"Total del Pasivo",{"$f":"SUM(E24+E14)","v":{"v":1794028.95,"d":"1,794,029"}},{"$f":"SUM(F14+F24)","v":{"v":4219793.1,"d":"4,219,793"}}]
[]
["Total del Activo",{"$f":"B13+B26","v":{"v":14916578.120000001,"d":"14,916,578"}},{"$f":"C13+C26","v":{"v":13710484.430000002,"d":"13,710,484"}},"HACIENDA PÚBLICA/PATRIMONIO"]
[]
[{"$nulls":3},"Hacienda Pública/Patrimonio Contribuido",{"$f":"SUM(E31:E33)","v":{"v":75000,"d":"75,000"}},{"$f":"SUM(F31:F33)","v":{"v":75000,"d":"75,000"}}]
[{"$nulls":3},"Aportaciones",0,0]
[{"$nulls":3},"Donaciones de Capital",{"v":75000,"d":"75,000"},{"v":75000,"d":"75,000"}]
[{"$nulls":3},"Actualización de la Hacienda Pública/Patrimonio",0,0]
[]
[{"$nulls":3},"Hacienda Pública/Patrimonio Generado",{"$f":"SUM(E36:E40)","v":{"v":13047549.17,"d":"13,047,549"}},{"$f":"SUM(F36:F40)","v":{"v":9415691.33,"d":"9,415,691"}}]
[{"$nulls":3},"Resultados del Ejercicio (Ahorro/ Desahorro)",{"v":3741710.14,"d":"3,741,710"},{"v":7579026.64,"d":"7,579,027"}]
[{"$nulls":3},"Resultados de Ejercicios Anteriores",{"v":9305839.03,"d":"9,305,839"},{"v":1836664.69,"d":"1,836,665"}]
[{"$nulls":3},"Revalúos",0,0]
[{"$nulls":3},"Reservas",0,0]
[{"$nulls":3},"Rectificaciones de Resultados de Ejercicios Anteriores",0,0]
[]
[{"$nulls":3},"Exceso o Insuficiencia en la Actualización de la Hacienda Pública/Patrimonio",{"$f":"SUM(E43:E44)","v":0},{"$f":"SUM(F43:F44)","v":0}]
[{"$nulls":3},"Resultado por Posición Monetaria",0,0]
[{"$nulls":3},"Resultado por Tenencia de Activos no Monetarios",0,0]
[]
[{"$nulls":3},"Total Hacienda Pública/Patrimonio",{"$f":"SUM(E42+E35+E30)","v":{"v":13122549.17,"d":"13,122,549"}},{"$f":"SUM(F42+F35+F30)","v":{"v":9490691.33,"d":"9,490,691"}}]
[]
[{"$nulls":3},"Total del Pasivo y Hacienda Pública/Patrimonio",{"$f":"E46+E26","v":{"v":14916578.12,"d":"14,916,578"}},{"$f":"F46+F26","v":{"v":13710484.43,"d":"13,710,484"}}]
[]
[]
["Bajo protesta de decir verdad declaramos que los Estados Financieros y sus notas, son razonablemente correctos y son responsabilidad del emisor."]